Cogmind - Beta 11.1 @@@ ROGUE MODE // 2022.05.06 @ 14:40:03 Player: Owlsley Result: Destroyed by as-82929 with Assembled Focal Cannon Performance ------------- Evolutions (4) 2000 Regions Visited (16) 3200 Robots Destroyed (192) 960 Value Destroyed (5783) 5783 Prototype IDs (29) 580 Alien Tech Used (0) 0 Bonus (2521) 2521 TOTAL SCORE: 15044 Bonus ------- High Alert Combat Kills 61 Follower Combat Kills 455 Met Data Miner 300 Destroyed Z-Imprinter 1000 Triggered Deep Caves Wall 500 Exposed GOLEM Chamber 500 Friendly Fire -295 Cogmind --------- Core Integrity 0/850 Matter 116/300 Energy 603/700 System Corruption 18% Temperature Cool (6) Movement Core (200) Ox3 Location -6/Deep Caves Parts ------- > --- POWER (1) -------- (None) > --- PROPULSION (4) --- (None) > --- UTILITY (8) ------ Zionite Biocell > --- WEAPON (2) ------- Cooled Particle Cannon Power Maul > --- INVENTORY (5) ---- Zionite Biocell (600) Matter Compressor (0) Advanced ECM Suite Cloaking Device Cooled Particle Cannon Peak State ------------ > --- POWER ------------ Zionite Light DM Reactor > --- PROPULSION ------- Armored Treads Armored Treads Armored Treads Armored Treads > --- UTILITY ---------- Experimental Heat Sink Experimental Heat Sink Huge Storage Unit Advanced Visual Processing Unit Advanced Targeting Computer Improved Particle Charger Zionite Heavy Carapace > --- WEAPON ----------- Zionite Laser-S Zionite Laser-M > --- INVENTORY -------- Improved Deuterium Engine Armored Treads Medium Treads Advanced Heat Sink Zionite Biocell Zionite Biocell Matter Compressor Structural Scanner Improved Sensor Array Improved Particle Charger Makeshift Transmission Jammer Advanced ECM Suite Cloaking Device Zionite Light Carapace Medium Reactive Plating Improved Hardlight Generator Shield Generator Improved System Restoration Module Long-range Proton Cannon Cooled Particle Cannon Cooled Particle Cannon Improved Grenade Launcher Long-range Missile Launcher Power Maul CR-A16's Pointy Stick [Rating: 83] Favorites ----------- Power Nuclear Core Engine Cooled Ion Engine Power Core Nuclear Core Reactor Zionite Light DM Reactor Propulsion Armored Treads Treads Armored Treads Leg Aluminum Leg Hover Unit Gravmag System Utility Huge Storage Unit Device Cooling System Storage Huge Storage Unit Processor Advanced Visual Processing Unit Hackware Authchip [Device] Protection Powered Armor Weapon Advanced Beam Cannon Energy Gun Medium Laser Energy Cannon Advanced Beam Cannon Ballistic Gun Assault Rifle Launcher Improved Grenade Launcher Impact Weapon Power Maul Build | -11 -10 -10 -9 -9 -9 -8 -8 -7 -7 -7 -6 -6 -6 -6 -6 -6 ------- Run | Scr Mat Min Mat Min Exi Min Mat Fac Low Dat Pro Fac Low Low Zio Dee Slots Evolved 8 | . . . 2 . . . 2 2 . . . 2 . . . . Power . | . . . . . . . . . . . . . . . . . Propulsion 2 | . . . 1 . . . 1 . . . . . . . . . Utility 6 | . . . 1 . . . 1 2 . . . 2 . . . . Weapon . | . . . . . . . . . . . . . . . . . Parts Attached 232 | . 14 3 36 14 . 3 30 37 8 2 3 36 2 3 1 40 Power 16 | . 3 1 1 . . . 4 3 . . . 2 . . . 2 Engine 8 | . 3 . 1 . . . 2 2 . . . . . . . . Core 5 | . . 1 . . . . 2 1 . . . 1 . . . . Reactor 3 | . . . . . . . . . . . . 1 . . . 2 Propulsion 42 | . 4 . 13 3 . . 13 2 . . . 5 . . . 2 Treads 41 | . 4 . 13 3 . . 13 2 . . . 4 . . . 2 Leg . | . . . . . . . . . . . . . . . . . Wheel . | . . . . . . . . . . . . . . . . . Hover 1 | . . . . . . . . . . . . 1 . . . . Flight . | . . . . . . . . . . . . . . . . . Utility 94 | . 4 1 12 1 . 1 7 24 6 . . 18 2 1 . 17 Device 39 | . 2 1 4 . . . 5 8 5 . . 8 2 . . 4 Storage 8 | . 2 . 4 . . . . . . . . . . . . 2 Processor 4 | . . . . . . . . 2 1 . . . . 1 . . Hackware 6 | . . . . . . . . 5 . . . 1 . . . . Protection 37 | . . . 4 1 . 1 2 9 . . . 9 . . . 11 Artifact . | . . . . . . . . . . . . . . . . . Weapon 80 | . 3 1 10 10 . 2 6 8 2 2 3 11 . 2 1 19 Energy Gun 18 | . 2 . 2 . . . 1 3 . 1 1 1 . . . 7 Energy Cannon 34 | . . 1 8 5 . 1 3 3 1 1 1 2 . 1 . 7 Ballistic Gun 7 | . 1 . . . . . . . . . . 6 . . . . Ballistic Cannon . | . . . . . . . . . . . . . . . . . Launcher 15 | . . . . 5 . 1 2 . 1 . 1 1 . 1 . 3 Special Weapon . | . . . . . . . . . . . . . . . . . Impact Weapon 6 | . . . . . . . . 2 . . . 1 . . 1 2 Slashing Weapon . | . . . . . . . . . . . . . . . . . Piercing Weapon . | . . . . . . . . . . . . . . . . . Special Melee Weapon . | . . . . . . . . . . . . . . . . . Unidentified Prototypes 15 | . . . 2 . . . 1 2 . . . 1 . . . 9 Parts Lost 50 | . 1 . 6 1 . . 2 1 . . 1 14 . . . 24 Power 4 | . 1 . . . . . . . . . . 1 . . . 2 Propulsion 15 | . . . 5 . . . . . . . . 4 . . . 6 Utility 20 | . . . 1 1 . . 2 . . . . 6 . . . 10 Weapon 11 | . . . . . . . . 1 . . 1 3 . . . 6 Highest Loss Streak 19 | . 1 . 3 1 . . 1 1 . . 1 11 . . . 19 To Critical Strikes 3 | . . . 1 . . . . . . . . . . . . 2 Average Slot Usage (%) 98 | . 98 100 99 100 100 100 99 99 100 85 100 97 100 100 100 90 Engine 5 | . 13 4 10 11 11 11 3 6 7 7 7 2 . . . . Core 2 | . . 9 . . . . 5 . . . . 3 6 6 6 1 Treads 28 | . 27 28 32 33 33 33 36 30 30 30 30 23 26 26 26 24 Device 16 | . 13 14 12 11 11 11 17 18 15 15 15 14 18 20 20 16 Storage 8 | . 14 14 11 11 11 11 9 7 7 7 7 6 6 6 6 6 Processor 9 | . . . . . . . . 10 22 23 23 20 20 20 20 14 Protection 6 | . . . 9 11 11 11 9 7 . . . 9 7 6 6 6 Energy Gun 5 | . 23 15 . . . . . 5 7 . 12 5 . . . 7 Energy Cannon 10 | . . 12 21 21 22 21 17 9 6 . 2 1 13 10 5 4 Naked Turns . | . . . . . . . . . . . . . . . . . Heaviest Build 132 | 11 50 51 104 104 104 104 108 117 108 101 101 122 116 116 116 132 Greatest Support 88 | 20 40 40 60 60 60 60 88 88 86 86 86 86 80 80 80 80 Greatest Overweight (x) 2 | . 1 1 1 1 1 1 1 1 1 1 1 1 1 1 1 2 Average Overweight (x) . | . . 1 . 1 1 1 1 1 1 1 1 1 1 1 1 . Largest Inventory Capacity 25 | 8 20 20 25 25 25 25 25 25 25 25 25 25 25 25 25 25 Average Capacity 23 | 8 18 20 21 25 25 25 25 25 25 25 25 25 25 25 25 23 Most Carried 25 | 6 20 20 25 25 25 25 25 25 25 25 25 25 25 25 25 25 Average Carried 23 | 6 17 19 21 24 25 24 24 24 25 25 24 22 25 23 24 22 Final Capacity 25 | 8 20 20 25 25 25 25 25 25 25 25 25 25 25 25 25 5 Final Carried 25 | 6 20 20 25 25 25 25 25 25 25 25 24 25 25 25 25 5 Class Distribution -------------------- 48% | Mutant 18% | Scavenger-Mutant 13% | Machinist-Mutant 11% | Machinist-Skirmisher 7% | Skirmisher Dominant Class ---------------- Mutant | -10/Materials Mutant | -10/Mines Mutant | -9/Materials Mutant | -9/Mines Mutant | -9/Exiles Mutant | -8/Mines Scavenger-Mutant | -8/Materials Mutant | -7/Factory Skirmisher | -7/Lower Caves Mutant | -7/Data Miner Skirmisher | -6/Proximity Caves Skirmisher | -6/Factory Machinist-Skirmisher | -6/Lower Caves Machinist-Skirmisher | -6/Lower Caves Machinist-Mutant | -6/Zion Scavenger-Mutant | -6/Deep Caves Resources | -11 -10 -10 -9 -9 -9 -8 -8 -7 -7 -7 -6 -6 -6 -6 -6 -6 ----------- Run | Scr Mat Min Mat Min Exi Min Mat Fac Low Dat Pro Fac Low Low Zio Dee Matter Collected 3425 | 206 288 30 331 138 . 97 340 348 . . 144 835 123 64 6 475 Remotely . | . . . . . . . . . . . . . . . . . Salvage Created 8290 | 16 697 344 1578 400 . 277 1493 998 39 . 87 1025 50 . . 1286 Parts 402 | 2 47 15 105 34 . 10 86 38 . . 9 31 4 . . 21 Haulers Intercepted 11 | . 1 . 5 . . . 4 . . . . 1 . . . . Recyclers Shooed 7 | . . . 2 . . . 1 3 . . . 1 . . . . Parts Field Recycled . | . . . . . . . . . . . . . . . . . Retrieved Matter . | . . . . . . . . . . . . . . . . . Parts Self-Destructed 17 | . . . . . . . . . . . 11 . 4 . 2 . Prevented . | . . . . . . . . . . . . . . . . . Kills | -11 -10 -10 -9 -9 -9 -8 -8 -7 -7 -7 -6 -6 -6 -6 -6 -6 ------- Run | Scr Mat Min Mat Min Exi Min Mat Fac Low Dat Pro Fac Low Low Zio Dee Combat Hostiles Destroyed 202 | . 12 9 32 17 . 6 27 14 1 . 4 13 1 . . 66 Melee 4 | . . . . . . . . . . . . . . . . 4 Guns 34 | . 11 1 1 . . . . 6 . . 2 9 . . . 4 Cannons 76 | . . 6 28 4 . 3 23 6 1 . . . 1 . . 4 AOE 71 | . . . . 13 . 3 4 . . . 2 1 . . . 48 Classes Destroyed 18 | 1 8 . 2 1 . . 1 1 . . . . . . . 4 Worker 11 | . 5 1 2 1 . . 1 1 . . . . . . . . Builder 5 | . 3 . 1 . . . 1 . . . . . . . . . Tunneler 1 | 1 . . . . . . . . . . . . . . . . Hauler 11 | . 1 . 5 . . . 4 . . . . 1 . . . . Recycler 9 | . 1 . 2 . . . 1 3 . . . 2 . . . . Operator 1 | . 1 . . . . . . . . . . . . . . . Watcher 9 | . 2 . 3 . . . 2 1 . . . 1 . . . . Swarmer 45 | . 6 3 15 11 . . 7 . . . 3 . . . . . Grunt 50 | . 6 6 6 5 . 5 10 5 . . . 7 . . . . Brawler 1 | . . . . 1 . . . . . . . . . . . . Duelist 4 | . . . 1 . . 1 . . . . . 2 . . . . Sentry 24 | . . . 10 . . . 8 5 . . . 1 . . . . Hunter 4 | . . . . . . . 2 . . . . 2 . . . . Programmer 8 | . . . . . . . . 4 1 . 1 1 1 . . . Z-Light 5 | . . . . . . . . . . . . . . . . 5 Assembler 2 | . . . . . . . . . . . . . . . . 2 Assembled 53 | . . . . . . . . . . . . . . . . 53 Golem 8 | . . . . . . . . . . . . . . . . 8 Thug 1 | . . . . 1 . . . . . . . . . . . . Best Kill Streak 49 | 1 5 4 13 7 . 3 6 5 1 . 3 3 1 . . 49 Combat Bots Only 48 | . 3 3 12 7 . 3 4 4 1 . 3 3 1 . . 48 Max Kills in Single Turn 6 | 1 2 1 2 4 . 2 3 1 1 . 3 1 1 . . 6 Gunslinging . | . . . . . . . . . . . . . . . . . Exploded 6 | . . . . 4 . 2 3 . . . 2 1 . . . 6 Melee 1 | . . . . . . . . . . . . . . . . 1 Uniques/NPCs Destroyed 1 | . . . . . . . . . . . . . . . . 1 Z-Imprinter (-6/Deep Caves) Combat | -11 -10 -10 -9 -9 -9 -8 -8 -7 -7 -7 -6 -6 -6 -6 -6 -6 -------- Run | Scr Mat Min Mat Min Exi Min Mat Fac Low Dat Pro Fac Low Low Zio Dee Damage Taken 11325 | . 437 519 1338 204 . 127 1299 983 125 . 121 2238 58 . . 3876 Core 1549 | . 55 96 205 19 . 15 235 36 15 . 23 340 . . . 510 Absorbed by Shields 184 | . . . 103 . . . . 37 . . . 44 . . . . Redirected to Shielding 82 | . . . . . . . . . . . . 82 . . . . Regen/Repaired (Parts) 584 | . 181 . 403 . . . . . . . . . . . . . Core Remaining (%) 65 | 100 . 39 . . . 40 57 . . . 89 . . . . . Volleys Fired 588 | 6 69 33 108 13 . 8 118 50 11 . 6 68 12 . 1 85 Largest 2 | 2 2 2 2 2 . 2 2 2 2 . 2 2 2 . 1 2 Hottest 180 | 70 100 110 136 136 . 136 136 148 148 . 149 149 60 . 81 180 Shots Fired 1092 | 12 137 66 216 23 . 16 221 100 17 . 12 117 24 . 1 130 Gun 404 | 12 137 41 12 . . . . 44 5 . 11 114 . . . 28 Cannon 646 | . . 25 204 18 . 14 218 56 6 . . 2 24 . 1 78 Launcher 42 | . . . . 5 . 2 3 . 6 . 1 1 . . . 24 Special . | . . . . . . . . . . . . . . . . . Kinetic 123 | 6 51 . . . . . . . . . . 66 . . . . Thermal 894 | 6 86 66 216 18 . 14 218 100 11 . 11 34 24 . . 90 Explosive 42 | . . . . 5 . 2 3 . 6 . 1 1 . . . 24 Electromagnetic 33 | . . . . . . . . . . . . 16 . . 1 16 Robot Hit Streak 27 | 6 15 7 13 4 . 6 9 23 10 . 5 27 2 . . 12 Robot Miss Streak 6 | 2 5 2 4 3 . 1 4 4 2 . 6 3 1 . . 4 Penetration Max . | . . . . . . . . . . . . . . . . . Secondary Targets 3 | . . . . . . . . . . . . 2 . . . 1 Max Gunslinging Chain 1 | . . . . . . . . . . . . 1 . . . 1 Shots Hit Robots 712 | 7 82 45 131 10 . 11 132 71 10 . 7 101 2 . . 103 Core Hits 451 | 2 34 16 44 22 . 11 49 38 2 . 6 51 1 . . 175 Critical Kills 6 | . 1 . 2 . . . . 2 . . . 1 . . . . Critical Parts Destroyed 5 | . 1 . . . . . . . . . . . . . . 4 Critical Strikes 24 | . 8 5 4 . . . . 2 . . . 1 . . . 4 Burn 13 | . 6 5 2 . . . . . . . . . . . . . Meltdown 4 | . . . 2 . . . . 2 . . . . . . . . Destroy 3 | . 2 . . . . . . . . . . 1 . . . . Smash 4 | . . . . . . . . . . . . . . . . 4 Melee Attacks 32 | . . . . . . . . 2 . . . 2 . . 8 20 Impact 32 | . . . . . . . . 2 . . . 2 . . 8 20 Slashing . | . . . . . . . . . . . . . . . . . Piercing . | . . . . . . . . . . . . . . . . . Sneak Attacks 1 | . . . . . . . . . . . . 1 . . . . Combat Hostiles . | . . . . . . . . . . . . . . . . . Follow-up Attacks . | . . . . . . . . . . . . . . . . . Damage Inflicted 22941 | 66 1038 702 2783 865 . 435 3224 1662 248 . 279 2430 67 . . 9142 Guns 5520 | 66 1038 379 128 . . . . 845 120 . 139 2086 . . . 719 Cannons 9042 | . . 323 2655 207 . 206 2941 817 128 . . 54 67 . . 1644 Explosions 7114 | . . . . 658 . 229 283 . . . 140 176 . . . 5628 Melee 1265 | . . . . . . . . . . . . 114 . . . 1151 Ramming . | . . . . . . . . . . . . . . . . . Kinetic 1634 | 29 410 . . . . . . . . . . 1195 . . . . Thermal 12241 | 37 628 702 2783 207 . 206 2941 1662 248 . 139 695 67 . . 1926 Explosive 7114 | . . . . 658 . 229 283 . . . 140 176 . . . 5628 Electromagnetic 687 | . . . . . . . . . . . . 250 . . . 437 Impact 1265 | . . . . . . . . . . . . 114 . . . 1151 Slashing . | . . . . . . . . . . . . . . . . . Piercing . | . . . . . . . . . . . . . . . . . Highest Corruption 18 | . . . . . . . . 6 8 8 9 1 . . . 18 Average Corruption 6 | . . . . . . . . 3 6 8 8 1 . . . 15 Corruption Purged 5 | . . . . . . . . 4 . . . 1 . . . . Corruption Blocked . | . . . . . . . . . . . . . . . . . Effects 66 | . . . . . . . . 21 11 3 17 2 . . . 12 Message Errors 10 | . . . . . . . . 4 3 . 1 . . . . 2 Matter Fused 13 | . . . . . . . . 2 2 1 6 1 . . . 1 Heat Flow Errors 15 | . . . . . . . . 7 2 . 4 . . . . 2 Energy Discharges 11 | . . . . . . . . 5 1 . 3 1 . . . 1 Data Loss (minor) 7 | . . . . . . . . 1 . 1 3 . . . . 2 Data Loss (major) 2 | . . . . . . . . . 1 1 . . . . . . Misfires 5 | . . . . . . . . 2 1 . . . . . . 2 Alerts 2 | . . . . . . . . . 1 . . . . . . 1 Weapon Failures 1 | . . . . . . . . . . . . . . . . 1 Overload Shots 4 | . . . . . . . . . . . . . . . . 4 Overflow Damage 670 | . . . 39 36 . 19 59 . 25 . 10 92 . . . 390 Projectiles 174 | . . . 39 . . . 59 . 25 . . . . . . 51 Explosions 203 | . . . . 36 . 19 . . . . 10 8 . . . 130 Melee 293 | . . . . . . . . . . . . 84 . . . 209 Knockbacks 2 | . . . . . . . . . . . . 1 . . . 1 Impact 2 | . . . . . . . . . . . . 1 . . . 1 Kinetic . | . . . . . . . . . . . . . . . . . Secondary . | . . . . . . . . . . . . . . . . . Self-Inflicted Damage 629 | . . . . 41 . 13 . . 23 . 47 116 . . . 389 Shots 18 | . . . . 1 . 2 . . 1 . 1 2 . . . 11 Rammed . | . . . . . . . . . . . . . . . . . Targets Rammed . | . . . . . . . . . . . . . . . . . Kicked . | . . . . . . . . . . . . . . . . . Crushed . | . . . . . . . . . . . . . . . . . Highest Temperature 474 | 100 198 220 262 184 . 193 241 249 193 . 190 48 . . . 474 Average Temperature 92 | 46 52 124 99 62 . 94 104 52 95 . 81 17 . . . 272 Received Heat Transfer 3448 | . 207 285 318 27 . 63 495 273 . . . 525 . . . 1255 Effects 9 | . . . . . . . 4 . . . . . . . . 5 Energy Bleed 4 | . . . . . . . 1 . . . . . . . . 3 Interference 3 | . . . . . . . 3 . . . . . . . . . Matter Decay 1 | . . . . . . . . . . . . . . . . 1 Damage (minor) 1 | . . . . . . . . . . . . . . . . 1 Siege Activations . | . . . . . . . . . . . . . . . . . Robots Corrupted 4 | . . . . . . . . . . . . 2 . . . 2 Combat Hostiles 4 | . . . . . . . . . . . . 2 . . . 2 Parts Fried 5 | . . . . . . . . . . . . 4 . . . 1 Impact Corruptions 7 | . . . . . . . . . . . . 2 . . . 5 Robots Melted 10 | . 1 2 3 . . . 1 2 . . . 1 . . . . Combat Hostiles 9 | . 1 2 3 . . . . 2 . . . 1 . . . . Parts Melted 50 | . 4 4 9 . . 1 9 15 2 . . 3 . . . 3 Heat Transferred 22875 | 111 2294 2146 5180 370 . 370 4958 3062 410 . 311 1457 74 . . 2132 Parts Sabotaged . | . . . . . . . . . . . . . . . . . Parts Stolen . | . . . . . . . . . . . . . . . . . Parts Stripped . | . . . . . . . . . . . . . . . . . Power Chain Reactions . | . . . . . . . . . . . . . . . . . Missiles Intercepted . | . . . . . . . . . . . . . . . . . Alert | -11 -10 -10 -9 -9 -9 -8 -8 -7 -7 -7 -6 -6 -6 -6 -6 -6 ------- Run | Scr Mat Min Mat Min Exi Min Mat Fac Low Dat Pro Fac Low Low Zio Dee Peak Influence 540 | 5 302 120 435 540 . 169 305 391 . . . 170 . . . . Initial 169 | . 3 . . 169 . . 65 87 . . . . . . . . Average 134 | . 43 35 273 421 . 149 108 95 . . . 46 . . . . Maximum Alert Level 2 | . 1 . 2 2 . . 1 1 . . . . . . . . Low Security (%) 74 | 100 96 100 28 . . 100 93 82 . . . 100 . . . . Level 1 14 | . 3 . 42 24 . . 6 17 . . . . . . . . Level 2 10 | . . . 29 75 . . . . . . . . . . . . Level 3 . | . . . . . . . . . . . . . . . . . Level 4 . | . . . . . . . . . . . . . . . . . Level 5 . | . . . . . . . . . . . . . . . . . High Security . | . . . . . . . . . . . . . . . . . Max Security . | . . . . . . . . . . . . . . . . . Squads Dispatched 19 | . 2 . 1 . . . 2 10 . . . 4 . . . . Investigation 6 | . 1 . 1 . . . 1 2 . . . 1 . . . . Extermination 6 | . . . . . . . . 4 . . . 2 . . . . Reinforcement 4 | . 1 . . . . . 1 1 . . . 1 . . . . Assault . | . . . . . . . . . . . . . . . . . Garrison 3 | . . . . . . . . 3 . . . . . . . . Intercept . | . . . . . . . . . . . . . . . . . Searches Triggered . | . . . . . . . . . . . . . . . . . Construction Impeded 1 | . . . . . . . . . . . . 1 . . . . Haulers Reinforced . | . . . . . . . . . . . . . . . . . Active Scanning Responses . | . . . . . . . . . . . . . . . . . Cargo Convoy Interrupts . | . . . . . . . . . . . . . . . . . Stealth | -11 -10 -10 -9 -9 -9 -8 -8 -7 -7 -7 -6 -6 -6 -6 -6 -6 --------- Run | Scr Mat Min Mat Min Exi Min Mat Fac Low Dat Pro Fac Low Low Zio Dee Distress Signals 13 | . 2 . 5 . . . 5 1 . . . . . . . . Communications Jammed . | . . . . . . . . . . . . . . . . . Distress Signals . | . . . . . . . . . . . . . . . . . Times Spotted 288 | . 20 9 49 18 . 6 47 28 1 . 6 15 1 . . 88 Peak Tracking Total 30 | . 5 3 11 4 . 3 5 3 1 . 3 3 1 . . 30 Tactical Retreats 10 | . 2 . 1 . . . 2 1 . . . . . . . 4 Traps | -11 -10 -10 -9 -9 -9 -8 -8 -7 -7 -7 -6 -6 -6 -6 -6 -6 ------- Run | Scr Mat Min Mat Min Exi Min Mat Fac Low Dat Pro Fac Low Low Zio Dee Traps Triggered 9 | . 1 . 1 . . . . 5 . . . 2 . . . . Indirectly . | . . . . . . . . . . . . . . . . . Trap Hack Attempts . | . . . . . . . . . . . . . . . . . Triggered . | . . . . . . . . . . . . . . . . . Disarmed . | . . . . . . . . . . . . . . . . . Reprogrammed . | . . . . . . . . . . . . . . . . . Reused . | . . . . . . . . . . . . . . . . . Traps Extracted . | . . . . . . . . . . . . . . . . . Installed . | . . . . . . . . . . . . . . . . . Triggered . | . . . . . . . . . . . . . . . . . Machines | -11 -10 -10 -9 -9 -9 -8 -8 -7 -7 -7 -6 -6 -6 -6 -6 -6 ---------- Run | Scr Mat Min Mat Min Exi Min Mat Fac Low Dat Pro Fac Low Low Zio Dee Machines Disabled 15 | . . . 2 . . . 5 3 . . . 2 . . . 3 Max in Single Turn 2 | . . . 1 . . . 1 2 . . . 1 . . . 1 Garrison Access 1 | . . . . . . . 1 . . . . . . . . . Machines Sabotaged . | . . . . . . . . . . . . . . . . . Garrisons Compromised . | . . . . . . . . . . . . . . . . . Overloaded Fab Kills . | . . . . . . . . . . . . . . . . . Hacking | -11 -10 -10 -9 -9 -9 -8 -8 -7 -7 -7 -6 -6 -6 -6 -6 -6 --------- Run | Scr Mat Min Mat Min Exi Min Mat Fac Low Dat Pro Fac Low Low Zio Dee Machines Accessed 48 | . 7 . 13 . . . 9 8 . 4 . 5 1 1 . . Terminals 27 | . 4 . 9 . . . 8 3 . . . 2 . 1 . . Fabricators 4 | . . . . . . . . 3 . . . 1 . . . . Repair Stations 4 | . 1 . 2 . . . . 1 . . . . . . . . Recycling Units 7 | . 2 . 2 . . . . 1 . . . 2 . . . . Scanalyzers . | . . . . . . . . . . . . . . . . . Garrison Access 1 | . . . . . . . 1 . . . . . . . . . Total Hacks 184 | . 32 . 46 . . . 23 35 . 30 . 16 1 1 . . Successful 116 | . 24 . 21 . . . 10 21 . 30 . 8 1 1 . . Failed 68 | . 8 . 25 . . . 13 14 . . . 8 . . . . Catastrophic 11 | . 1 . 3 . . . 4 3 . . . . . . . . Database Lockouts . | . . . . . . . . . . . . . . . . . Manual 71 | . 19 . 24 . . . 15 10 . . . 2 . . 1 . Terminals 90 | . 16 . 32 . . . 21 14 . . . 6 . 1 . . Fabricators 20 | . . . . . . . . 15 . . . 5 . . . . Repair Stations 15 | . 6 . 7 . . . . 2 . . . . . . . . Recycling Units 26 | . 10 . 7 . . . . 4 . . . 5 . . . . Scanalyzers . | . . . . . . . . . . . . . . . . . Garrison Access 2 | . . . . . . . 2 . . . . . . . . . Terminal Hacks 65 | . 7 . 10 . . . 8 6 . 30 . 2 1 1 . . Record 12 | . . . . . . . . . . 11 . . . 1 . . Part Schematic 20 | . 3 . 1 . . . 2 3 . 11 . . . . . . Robot Schematic 7 | . . . 1 . . . 1 . . 5 . . . . . . Robot Analysis 3 | . 1 . . . . . 2 . . . . . . . . . Prototype ID Bank 6 | . . . 2 . . . . 1 . 3 . . . . . . Open Door 1 | . . . . . . . . . . . . . 1 . . . Branch Access Points 3 | . . . 1 . . . . 1 . . . 1 . . . . Terminal Index 1 | . . . 1 . . . . . . . . . . . . . Alert Level 2 | . . . 2 . . . . . . . . . . . . . Unreport Threat 5 | . 1 . 1 . . . 3 . . . . . . . . . Locate Traps 1 | . 1 . . . . . . . . . . . . . . . Hauler Manifests 1 | . . . . . . . . 1 . . . . . . . . Registered Components 1 | . 1 . . . . . . . . . . . . . . . Zone Layout 2 | . . . 1 . . . . . . . . 1 . . . . Fabricator Hacks 15 | . . . . . . . . 11 . . . 4 . . . . Load Schematic 8 | . . . . . . . . 6 . . . 2 . . . . Build 7 | . . . . . . . . 5 . . . 2 . . . . Repair Station Hacks 13 | . 6 . 6 . . . . 1 . . . . . . . . Scan Component 7 | . 3 . 3 . . . . 1 . . . . . . . . Repair 6 | . 3 . 3 . . . . . . . . . . . . . Recycling Unit Hacks 7 | . 2 . 2 . . . . 1 . . . 2 . . . . Retrieve Components 7 | . 2 . 2 . . . . 1 . . . 2 . . . . Scanalyzer . | . . . . . . . . . . . . . . . . . Garrison Access Hacks 1 | . . . . . . . 1 . . . . . . . . . Seal Access 1 | . . . . . . . 1 . . . . . . . . . Unauthorized Hacks 15 | . 9 . 3 . . . 1 2 . . . . . . . . Terminals 6 | . 3 . 2 . . . 1 . . . . . . . . . Track 2 | . 1 . 1 . . . . . . . . . . . . . Botnet 1 | . 1 . . . . . . . . . . . . . . . Operators 3 | . 1 . 1 . . . 1 . . . . . . . . . Fabricators 2 | . . . . . . . . 2 . . . . . . . . Prioritize 1 | . . . . . . . . 1 . . . . . . . . Recompile 1 | . . . . . . . . 1 . . . . . . . . Repair Stations . | . . . . . . . . . . . . . . . . . Recycling Units 7 | . 6 . 1 . . . . . . . . . . . . . Monitor 1 | . 1 . . . . . . . . . . . . . . . Reject 2 | . 2 . . . . . . . . . . . . . . . Recyclers 1 | . 1 . . . . . . . . . . . . . . . Mask 3 | . 2 . 1 . . . . . . . . . . . . . Scanalyzers . | . . . . . . . . . . . . . . . . . Garrison Access . | . . . . . . . . . . . . . . . . . Data Cores Recovered 1 | . . . . . . . . 1 . . . . . . . . Used . | . . . . . . . . . . . . . . . . . Hacking Detections 37 | . 4 . 13 . . . 8 7 . . . 5 . . . . Full Trace Events 2 | . . . . . . . 1 . . . . 1 . . . . Feedback Events . | . . . . . . . . . . . . . . . . . Feedback Blocked . | . . . . . . . . . . . . . . . . . Robot Schematics Acquired 9 | . . . 1 . . . 1 . . 5 . . . . 2 . Robots Built 4 | . . . . . . . . 4 . . . . . . . . Authchips 2 | . . . . . . . . 2 . . . . . . . . Time 87 | . . . . . . . . 87 . . . . . . . . Total Robot Build Rating 12 | . . . . . . . . 12 . . . . . . . . Part Schematics Acquired 33 | . 3 . 1 . . . 2 3 . 11 . . . . 13 . Parts Built 10 | . . . . . . . . 6 . . . 4 . . . . Authchips 4 | . . . . . . . . 3 . . . 1 . . . . Time 258 | . . . . . . . . 101 . . . 157 . . . . Total Part Build Rating 38 | . . . . . . . . 24 . . . 14 . . . . Parts Repaired 6 | . 3 . 3 . . . . . . . . . . . . . Time 162 | . 78 . 84 . . . . . . . . . . . . . Parts Recycled . | . . . . . . . . . . . . . . . . . Recycled Matter . | . . . . . . . . . . . . . . . . . Retrieved Matter . | . . . . . . . . . . . . . . . . . Retrieved Components 18 | . 10 . . . . . . 1 . . . 7 . . . . Parts Scanalyzed . | . . . . . . . . . . . . . . . . . Part Schematics Acquired . | . . . . . . . . . . . . . . . . . Parts Damaged . | . . . . . . . . . . . . . . . . . Bothacking | -11 -10 -10 -9 -9 -9 -8 -8 -7 -7 -7 -6 -6 -6 -6 -6 -6 ------------ Run | Scr Mat Min Mat Min Exi Min Mat Fac Low Dat Pro Fac Low Low Zio Dee Used RIF Installer . | . . . . . . . . . . . . . . . . . Robots Hacked . | . . . . . . . . . . . . . . . . . Non-combat . | . . . . . . . . . . . . . . . . . Combat . | . . . . . . . . . . . . . . . . . Robot Hacks Applied . | . . . . . . . . . . . . . . . . . Relay Couplers Released . | . . . . . . . . . . . . . . . . . Fabnet Peak Effective % . | . . . . . . . . . . . . . . . . . Robots Rewired . | . . . . . . . . . . . . . . . . . Allies Hacked 2 | . . . . . . . . 2 . . . . . . . . Hacks Repelled . | . . . . . . . . . . . . . . . . . Allies | -11 -10 -10 -9 -9 -9 -8 -8 -7 -7 -7 -6 -6 -6 -6 -6 -6 -------- Run | Scr Mat Min Mat Min Exi Min Mat Fac Low Dat Pro Fac Low Low Zio Dee Total Allies 7 | . . . . . . . . 4 . . 1 . . . 2 . Largest Group 2 | . . . . . . . . 2 . . 1 1 . . 2 2 Highest-Rated Group 192 | . . . . . . . . 42 . . 96 96 . . 192 192 Highest-Rated Ally 96 | . . . . . . . . 21 . . 96 96 . . 96 96 Total Orders . | . . . . . . . . . . . . . . . . . Ally Attacks 106 | . . . . . . . . 22 . . 7 14 . . . 63 Total Damage 2912 | . . . . . . . . 559 . . 248 390 . . . 1715 Kills 22 | . . . . . . . . 6 . . 2 2 . . . 12 Allies Corrupted 1 | . . . . . . . . 1 . . . . . . . . Allies Melted . | . . . . . . . . . . . . . . . . . Intel | -11 -10 -10 -9 -9 -9 -8 -8 -7 -7 -7 -6 -6 -6 -6 -6 -6 ------- Run | Scr Mat Min Mat Min Exi Min Mat Fac Low Dat Pro Fac Low Low Zio Dee Robot Analysis Total 3 | . 1 . . . . . 2 . . . . . . . . . Derelict Logs Recovered 4 | . . 1 . 1 . . . . . . . . 1 1 . . Drone Launches . | . . . . . . . . . . . . . . . . . Drone Recoveries . | . . . . . . . . . . . . . . . . . Exploration | -11 -10 -10 -9 -9 -9 -8 -8 -7 -7 -7 -6 -6 -6 -6 -6 -6 ------------- Run | Scr Mat Min Mat Min Exi Min Mat Fac Low Dat Pro Fac Low Low Zio Dee Turns Passed 25367 | 17 2549 1243 3125 880 368 399 2793 2728 438 210 547 1779 1790 1341 2457 2703 Spaces Moved 9591 | 1 973 474 1242 340 154 154 987 1044 170 91 226 591 699 526 967 952 Core . | . . . . . . . . . . . . . . . . . Treads 9544 | . 927 474 1242 340 154 154 987 1044 170 91 226 591 699 526 967 952 Legs 47 | 1 46 . . . . . . . . . . . . . . . Wheels . | . . . . . . . . . . . . . . . . . Hover . | . . . . . . . . . . . . . . . . . Flight . | . . . . . . . . . . . . . . . . . Fastest Speed 120 | 120 120 240 160 240 240 240 225 225 228 228 228 228 250 250 250 170 Average Speed 233 | 120 225 240 200 240 240 240 236 225 228 228 228 239 250 250 250 245 Slowest Speed 330 | 120 240 240 240 240 240 240 240 228 228 228 228 250 250 250 250 330 Overloaded Moves . | . . . . . . . . . . . . . . . . . Propulsion Burnouts . | . . . . . . . . . . . . . . . . . Robots Hopped . | . . . . . . . . . . . . . . . . . Cave-ins Triggered . | . . . . . . . . . . . . . . . . . Exploration Rate (%) 59 | 1 98 94 86 68 54 35 84 24 22 72 41 11 86 59 87 91 Regions Visited 16 Branch Regions 11 Pre-discovered Areas 2 | . . 1 . . . . . . . 1 . . . . . . Known Exits Taken 9 | . . . 1 . . . . 1 1 1 1 1 1 1 1 . Unknown Exits Taken 7 | 1 1 1 . 1 1 1 1 . . . . . . . . . Scrap Searched 7 | . . 1 . 2 . . . . . . . . 1 2 1 . Spaces Dug 48 | . . . . . . . . 2 35 . . 1 8 . 2 . Terrain Destroyed 293 | . . . . 62 . 22 44 27 69 . 12 39 8 . 2 8 Melee 5 | . . . . . . . . 2 . . . 1 . . 2 . Projectile 33 | . . . . . . . 17 . . . . . 8 . . 8 AOE 255 | . . . . 62 . 22 27 25 69 . 12 38 . . . . Terrain Rammed . | . . . . . . . . . . . . . . . . . Walls Destroyed . | . . . . . . . . . . . . . . . . . Machines Disabled . | . . . . . . . . . . . . . . . . . Actions | -11 -10 -10 -9 -9 -9 -8 -8 -7 -7 -7 -6 -6 -6 -6 -6 -6 --------- Run | Scr Mat Min Mat Min Exi Min Mat Fac Low Dat Pro Fac Low Low Zio Dee Total 11411 | 6 1201 514 1669 379 153 168 1229 1307 200 94 244 830 718 555 991 1153 Wait 669 | . 98 1 204 7 . . 57 137 12 . 10 98 6 14 11 14 Move 9575 | . 972 473 1241 339 153 153 986 1043 169 90 225 590 698 525 966 952 Hop . | . . . . . . . . . . . . . . . . . Pick Up 158 | . 30 2 42 2 . 2 13 18 . . . 24 . 7 2 16 Fast Attach 44 | . 4 1 6 . . . 5 11 . 2 . 6 . . . 9 Attach 60 | . 2 1 9 1 . . 5 7 . . 1 19 . . . 15 Detach 2 | . . . . . . . . . . . . 2 . . . . Swap 128 | . 8 1 21 13 . 3 20 19 8 . 2 11 2 3 1 16 Drop 155 | . 18 2 38 4 . 2 25 20 . 2 . 10 . 6 2 26 Fire 588 | 6 69 33 108 13 . 8 118 50 11 . 6 68 12 . 1 85 Melee 32 | . . . . . . . . 2 . . . 2 . . 8 20 Ram . | . . . . . . . . . . . . . . . . . Kick . | . . . . . . . . . . . . . . . . . Crush . | . . . . . . . . . . . . . . . . . Escape Stasis . | . . . . . . . . . . . . . . . . . Rewire . | . . . . . . . . . . . . . . . . . Trap . | . . . . . . . . . . . . . . . . . Miscellaneous . | . . . . . . . . . . . . . . . . . Route ------- -11/Scrapyard -10/Materials (discovered 4 exits: *Mat x3 / [*Min]) -10/Mines (discovered 2 exits: *Mat x2) -9/Materials (discovered 5 exits: *Mat x2 / *Min x2 / *Sto) -9/Mines (discovered 2 exits: *Mat / [*Exi]) -9/Exiles -8/Mines -8/Materials (discovered 3 exits: *Fac x3) -7/Factory (discovered 2 exits: *Low x2) -7/Lower Caves -7/Data Miner -6/Proximity Caves -6/Factory (discovered 2 exits: *Low x2) -6/Lower Caves -6/Lower Caves -6/Zion (discovered 2 exits: *Dee / [*Pro]) -6/Deep Caves (discovered 1 exit: [*Pro]) History --------- Turn | Location | Event 18 | -11/Scrapyard | Discovered new exit (range 0) 18 | -11/Scrapyard | Entered Materials 125 | -10/Materials | Discovered new exit (range 16) 305 | -10/Materials | Build established: Mutant 964 | -10/Materials | Discovered new exit (range 4) 1310 | -10/Materials | Discovered new exit (range 15) 1423 | -10/Materials | Repaired Lgt. Treads 1450 | -10/Materials | Repaired Lgt. Treads 1478 | -10/Materials | Repaired Signal Interpreter 2093 | -10/Materials | Discovered new exit (range 4) 2567 | -10/Materials | Entered Mines 2958 | -10/Mines | Core integrity fell below 50% 3089 | -10/Mines | Discovered new exit (range 7) 3336 | -10/Mines | Learned Materials stockpile data 3451 | -10/Mines | Discovered new exit (range 10) 3454 | -10/Mines | Learned location of Storage (-9) 3810 | -10/Mines | Entered Materials 3810 | -9/Materials | Evolved 2 slots: Propulsion x1, Utility x1 4141 | -9/Materials | Discovered new exit (range 15) 4590 | -9/Materials | Build established: Scavenger-Mutant 4637 | -9/Materials | Repaired Huge Storage Unit 4746 | -9/Materials | Destroyed 12 combat bots 4755 | -9/Materials | Lost 3 parts (2n1u) 4858 | -9/Materials | Discovered new exit (range 16) 4996 | -9/Materials | Build established: Mutant 5472 | -9/Materials | Repaired Lgt. Treads 5506 | -9/Materials | Repaired Disposable Heat Sink 5667 | -9/Materials | Identified exit to Mines 5667 | -9/Materials | Identified exit to Storage 5920 | -9/Materials | Discovered new exit (range 13) 6358 | -9/Materials | Core integrity fell below 50% 6935 | -9/Materials | Entered Mines 6972 | -9/Mines | Destroyed 7 combat bots 7157 | -9/Mines | Discovered new exit (range 6) 7455 | -9/Mines | Joined a pair of Derelicts in attacking an 0b10 outpost 7478 | -9/Mines | Learned Materials emergency access door positions 7805 | -9/Mines | Deemed a non-threat by the Exiles lab entrance 7805 | -9/Mines | Discovered new exit (range 5) 7815 | -9/Mines | Entered Exiles 7871 | -9/Exiles | Met 8R-AWN 7916 | -9/Exiles | Met EX-HEX 7986 | -9/Exiles | Met EX-BIN 8015 | -9/Exiles | Met EX-DEC 8156 | -9/Exiles | Discovered new exit (range 11) 8183 | -9/Exiles | Entered Mines 8462 | -8/Mines | Discovered new exit (range 15) 8582 | -8/Mines | Entered Materials 8582 | -8/Materials | Evolved 2 slots: Propulsion x1, Utility x1 8881 | -8/Materials | Build established: Scavenger-Mutant 9227 | -8/Materials | Discovered new exit (range 10) 9831 | -8/Materials | Discovered new exit (range 10) 10901 | -8/Materials | Discovered new exit (range 16) 11117 | -8/Materials | Build established: Mutant 11375 | -8/Materials | Entered Factory 11375 | -7/Factory | Evolved 2 slots: Utility x2 12387 | -7/Factory | Fabricated Arm. Treads (x2) 12465 | -7/Factory | Fabricated H-55 Commando? 12472 | -7/Factory | Garrison activated, responded to threat 12968 | -7/Factory | Fabricated Powered Armor (x2) 13003 | -7/Factory | Fabricated H-55 Commando (x2) 13026 | -7/Factory | Fabricated Imp. Particle Charger (x2) 13707 | -7/Factory | Identified exit to Lower Caves 14103 | -7/Factory | Entered Lower Caves 14439 | -7/Lower Caves | Encountered a Warlord checkpoint 14529 | -7/Lower Caves | A Derelict revealed a hidden shortcut to meet someone special 14535 | -7/Lower Caves | Identified exit to Data Miner 14541 | -7/Lower Caves | Entered Data Miner 14542 | -7/Data Miner | Discovered new exit (range 6) 14577 | -7/Data Miner | Met Data Miner 14627 | -7/Data Miner | Learned location of Section 7 (-2) 14627 | -7/Data Miner | Acquired the access code to Warlord's prototype stash 14663 | -7/Data Miner | Received God Mode back door access code from Data Miner 14748 | -7/Data Miner | Identified exit to Proximity Caves 14751 | -7/Data Miner | Entered Proximity Caves 14928 | -6/Proximity Caves | Escorted by Enhanced Grunt 15025 | -6/Proximity Caves | Build established: Skirmisher 15257 | -6/Proximity Caves | Discovered new exit (range 17) 15289 | -6/Proximity Caves | Identified exit to Factory 15298 | -6/Proximity Caves | Entered Factory 15298 | -6/Factory | Accompanied by 1 ally 15298 | -6/Factory | Evolved 2 slots: Utility x2 16034 | -6/Factory | Lost 11 parts (1p4n4u2w) 16281 | -6/Factory | Identified exit to Lower Caves 16625 | -6/Factory | Fabricated Powered Armor (x2) 16698 | -6/Factory | Fabricated Arm. Treads (x2) 16788 | -6/Factory | Lost 3 parts (2u1w) 17054 | -6/Factory | Build established: Machinist-Skirmisher 17077 | -6/Factory | Entered Lower Caves 17285 | -6/Lower Caves | Learned Factory stockpile data 17784 | -6/Lower Caves | Encountered a Warlord checkpoint 18800 | -6/Lower Caves | Discovered new exit (range 7) 18865 | -6/Lower Caves | Identified exit to Lower Caves 18867 | -6/Lower Caves | Entered another Lower Caves area 19173 | -6/Lower Caves | Encountered a Warlord checkpoint 19901 | -6/Lower Caves | Identified exit to Zion 19957 | -6/Lower Caves | Build established: Machinist-Mutant 20056 | -6/Lower Caves | Spotted B-75 Beast 20208 | -6/Lower Caves | Entered Zion 20333 | -6/Zion | Discovered new exit (range 9) 20623 | -6/Zion | Given A8's code to call for help 21929 | -6/Zion | Found CR-A16's Pointy Stick 22639 | -6/Zion | Discovered new exit (range 5) 22641 | -6/Zion | Saw the warning signs outside the Deep Caves entrance 22644 | -6/Zion | Enhanced Grunt warped into view, answering call for help 22645 | -6/Zion | Enhanced Grunt warped into view, answering call for help 22646 | -6/Zion | Identified exit to Deep Caves 22665 | -6/Zion | Entered Deep Caves 22665 | -6/Deep Caves | Accompanied by 2 allies 23042 | -6/Deep Caves | Attacked by Z-Imprinter 23060 | -6/Deep Caves | Allies destroyed Z-Imprinter 23078 | -6/Deep Caves | Z-Facility disabled 23317 | -6/Deep Caves | Found Prototype Protection 23318 | -6/Deep Caves | Identified Zio. Weapon Casing 23435 | -6/Deep Caves | Build established: Scavenger-Mutant 23782 | -6/Deep Caves | Found Prototype Protection 23782 | -6/Deep Caves | Identified Zio. Heavy Carapace 23787 | -6/Deep Caves | Found Zio. Heavy Carapace 24796 | -6/Deep Caves | Discovered new exit (range 7) 24913 | -6/Deep Caves | Spotted as-31421 24926 | -6/Deep Caves | Core integrity fell below 50% 24930 | -6/Deep Caves | Destroyed as-31421 25017 | -6/Deep Caves | Triggered Deep Caves wall 25033 | -6/Deep Caves | Exposed GOLEM chamber 25064 | -6/Deep Caves | Spotted AS-95648 25096 | -6/Deep Caves | Destroyed AS-95648 25102 | -6/Deep Caves | Spotted AS-74563 25116 | -6/Deep Caves | System corruption reached 10% 25128 | -6/Deep Caves | Destroyed 48 combat bots 25146 | -6/Deep Caves | Destroyed AS-74563 25167 | -6/Deep Caves | Core integrity fell below 20% 25210 | -6/Deep Caves | Lost 19 parts (2p5n7u5w) 25244 | -6/Deep Caves | Destroyed 9 combat bots 25358 | -6/Deep Caves | Spotted as-82929 25368 | -6/Deep Caves | Destroyed by as-82929 with Assembled Focal Cannon Last Messages --------------- 25273_ as-33345 suffers critical hit (Smash). 25273_ Destroyed Prototype Reactor. 25273_ as-33345 system corrupted by crushing effect. 25274_ as-33345 GOLEM Unit beginning Prototype Reactor integration. 25274_ as-33345 system terminally corrupted. 25291_ System corrupted: Cld. Particle Cannon failed to cycle. 25301_ as-65858 Prototype Reactor integration complete. 25302_ as-65858 GOLEM Unit beginning Prototype Leg integration. 25306_ as-65858 destroyed. 25311_ System corrupted: Heat flow error (+252). 25319_ as-72118 Prototype Reactor integration complete. 25320_ as-72118 GOLEM Unit beginning Prototype Leg integration. 25329_ System corrupted: FCS attempts to trigger Cld. Particle Cannon. 25329_ System corrupted: Cld. Particle Cannon misfires. 25329_ ES-5IB(M) destroyed. 25351_ System corrupted: IFF burst signal emitted. 25364_ as-82929: "DSI9AT1D G8OHIBQ29FWG 26R186 QD12WHW8W33 TDK1 81FTS" 25364_ Arm. Treads destroyed. 25367_ E=6WBMFBOJQ=M